Cogmind - Beta 13 @@@ ROGUE MODE // 2024.04.06 @ 21:58:31 Player: Grewsome Result: Destroyed by Y-45 Defender with Beam Rifle Performance ------------- Evolutions (1) 500 Regions Visited (3) 600 Robots Destroyed (32) 160 Value Destroyed (518) 518 Prototype IDs (2) 40 Alien Tech Used (0) 0 Bonus (33) 33 TOTAL SCORE: 1851 Bonus ------- Follower Combat Kills 33 Cogmind --------- Core Integrity 0/400 Matter 300/300 Energy 100/100 System Corruption 0% Temperature Cool (27) Movement Core (50) Location -9/Materials Parts ------- > --- POWER (1) -------- (None) > --- PROPULSION (3) --- (None) > --- UTILITY (3) ------ Signal Interpreter Hacking Suite Hacking Suite > --- WEAPON (2) ------- Ripper > --- INVENTORY (5) ---- Machine Analyzer Propulsion Shielding Datajack Peak State ------------ > --- POWER ------------ Light Nuclear Core > --- PROPULSION ------- Flight Unit Flight Unit Flight Unit > --- UTILITY ---------- Signal Interpreter Hacking Suite Hacking Suite > --- WEAPON ----------- Mining Laser Ripper > --- INVENTORY -------- Machine Analyzer Propulsion Shielding Datajack [Rating: 18] Favorites ----------- Power Ion Engine Engine Ion Engine Power Core Light Nuclear Core Propulsion Flight Unit Wheel Wheel Flight Unit Flight Unit Utility Sensor Array Device Sensor Array Storage Small Storage Unit Processor Signal Interpreter Hackware Hacking Suite Protection Propulsion Shielding Weapon Small Laser Energy Gun Small Laser Launcher Grenade Launcher Special Weapon Mining Laser Slashing Weapon Ripper Special Melee Weapon Datajack Build | -11 -10 -10 -9 ------- Run | Yrd Mat Min Mat Slots Evolved 2 | . . . 2 Power . | . . . . Propulsion 1 | . . . 1 Utility 1 | . . . 1 Weapon . | . . . . Parts Attached 37 | 7 12 2 16 Power 4 | 1 . . 3 Engine 3 | 1 . . 2 Core 1 | . . . 1 Reactor . | . . . . Propulsion 12 | 3 4 . 5 Treads . | . . . . Leg . | . . . . Wheel 3 | 3 . . . Hover . | . . . . Flight 9 | . 4 . 5 Utility 10 | 1 4 1 4 Device 2 | 1 1 . . Storage 2 | . 2 . . Processor 2 | . 1 . 1 Hackware 3 | . . . 3 Protection 1 | . . 1 . Artifact . | . . . . Weapon 11 | 2 4 1 4 Energy Gun 3 | 2 1 . . Energy Cannon . | . . . . Ballistic Gun . | . . . . Ballistic Cannon . | . . . . Launcher 1 | . 1 . . Special Weapon 3 | . 2 . 1 Impact Weapon . | . . . . Slashing Weapon 2 | . . 1 1 Piercing Weapon . | . . . . Special Melee Weapon 2 | . . . 2 Unidentified Prototypes . | . . . . Parts Lost 18 | . 6 . 12 Power 3 | . 1 . 2 Propulsion 8 | . 1 . 7 Utility 3 | . 1 . 2 Weapon 4 | . 3 . 1 Highest Loss Streak 5 | . 4 . 5 To Critical Strikes . | . . . . Average Slot Usage (%) 73 | . 78 68 72 Engine 4 | . 9 . 3 Core 1 | . . . 3 Wheel 2 | . 5 . . Flight 25 | . 22 28 26 Device 10 | . 12 14 5 Storage 3 | . 6 3 . Processor 1 | . . . 3 Hackware 2 | . . . 8 Protection 4 | . . 8 7 Energy Gun 5 | . 14 . . Special Weapon 3 | . 7 3 . Slashing Weapon 6 | . . 10 10 Naked Turns . | . . . . Heaviest Build 10 | 8 10 7 9 Greatest Support 26 | 26 20 8 12 Greatest Overweight (x) 2 | . 2 . 1 Average Overweight (x) . | . . . . Largest Inventory Capacity 8 | 5 8 8 5 Average Capacity 5 | 5 5 5 5 Most Carried 5 | 2 5 5 5 Average Carried 3 | . 2 4 3 Final Capacity 8 | 5 8 5 5 Final Carried 4 | 1 4 4 3 Class Distribution -------------------- 86% | Mutant 10% | Hacker-Mutant 3% | Scavenger-Mutant Dominant Class ---------------- Mutant | -10/Materials Mutant | -10/Mines Mutant | -9/Materials Resources | -11 -10 -10 -9 ----------- Run | Yrd Mat Min Mat Matter Collected 554 | 260 30 28 236 Remotely . | . . . . Salvage Created 692 | 185 53 . 454 Parts 57 | 9 11 . 37 Haulers Intercepted . | . . . . Recyclers Shooed 1 | . 1 . . Parts Field Recycled . | . . . . Retrieved Matter . | . . . . Parts Self-Destructed . | . . . . Prevented . | . . . . Kills | -11 -10 -10 -9 ------- Run | Yrd Mat Min Mat Combat Hostiles Destroyed 18 | . 8 . 10 Melee 10 | . . . 10 Guns 3 | . 3 . . AOE 5 | . 5 . . Classes Destroyed 10 | 3 3 . 4 Worker 3 | 1 . . 2 Builder 1 | . 1 . . Tunneler 4 | 4 . . . Recycler 1 | 1 . . . Mechanic 1 | . . . 1 Operator 1 | . . . 1 Watcher 3 | . 1 . 2 Swarmer 12 | . 8 . 4 Grunt 4 | . . . 4 Sentry 2 | . . . 2 Best Kill Streak 7 | 4 7 . 4 Combat Bots Only 6 | . 6 . 3 Max Kills in Single Turn 5 | 2 5 . 1 Gunslinging . | . . . . Exploded 4 | . 4 . . Melee 1 | . . . 1 Uniques/NPCs Destroyed . | . . . . Combat | -11 -10 -10 -9 -------- Run | Yrd Mat Min Mat Hostile Shots Fired 143 | . 34 . 109 Missed 49 | . 15 . 34 Damage Taken 1221 | . 459 . 762 Core 469 | . 60 . 409 Absorbed by Shields . | . . . . Redirected to Shielding 17 | . . . 17 Core Remaining (%) 88 | 100 . 76 . Volleys Fired 46 | 16 28 1 1 Largest 2 | 2 2 1 1 Hottest 140 | 80 140 100 100 Shots Fired 72 | 32 38 1 1 Gun 52 | 32 20 . . Cannon . | . . . . Launcher 2 | . 2 . . Special 18 | . 16 1 1 Kinetic . | . . . . Thermal 70 | 32 36 1 1 Explosive 2 | . 2 . . Electromagnetic . | . . . . Robot Hit Streak 7 | 7 5 . . Robot Miss Streak 4 | 3 4 . . Penetration Max . | . . . . Secondary Targets . | . . . . Shots Hit Robots 68 | 20 10 . 38 Core Hits 30 | 7 11 . 12 Critical Kills . | . . . . Critical Parts Destroyed . | . . . . Critical Strikes 2 | . . . 2 Sever 2 | . . . 2 Melee Attacks 60 | . . 10 50 Impact . | . . . . Slashing 56 | . . 10 46 Piercing . | . . . . Sneak Attacks 8 | . . . 8 Combat Hostiles . | . . . . Follow-up Attacks . | . . . . Damage Inflicted 2490 | 241 783 . 1466 Guns 352 | 241 111 . . Cannons . | . . . . Explosions 672 | . 672 . . Melee 1466 | . . . 1466 Ramming . | . . . . Kinetic . | . . . . Thermal 831 | 241 590 . . Explosive 193 | . 193 . . Electromagnetic . | . . . . Impact . | . . . . Slashing 1466 | . . . 1466 Piercing . | . . . . Highest Corruption 12 | . 12 12 . Average Corruption 9 | . 6 12 . Corruption Purged . | . . . . Corruption Blocked . | . . . . Effects 18 | . 6 12 . Message Errors 3 | . 2 1 . Matter Fused 4 | . . 4 . Heat Flow Errors 3 | . 1 2 . Energy Discharges 2 | . 1 1 . Data Loss (minor) 4 | . 1 3 . Data Loss (major) 1 | . . 1 . Misfires 1 | . 1 . . Overload Shots . | . . . . Overflow Damage 358 | . 187 . 171 Projectiles . | . . . . Explosions 187 | . 187 . . Melee 171 | . . . 171 Knockbacks . | . . . . Impact . | . . . . Kinetic . | . . . . Secondary . | . . . . Self-Inflicted Damage 54 | . 54 . . Shots 1 | . 1 . . Rammed . | . . . . Targets Rammed . | . . . . Kicked . | . . . . Crushed . | . . . . Highest Temperature 279 | 126 279 164 28 Average Temperature 45 | 42 45 63 13 Received Heat Transfer 186 | . 12 . 174 Siege Activations . | . . . . Robots Corrupted . | . . . . Combat Hostiles . | . . . . Parts Fried . | . . . . Impact Corruptions . | . . . . Robots Melted . | . . . . Combat Hostiles . | . . . . Parts Melted 2 | 1 1 . . Heat Transferred 1200 | 550 650 . . Parts Sabotaged . | . . . . Parts Stolen . | . . . . Parts Stripped . | . . . . Power Chain Reactions . | . . . . Alert | -11 -10 -10 -9 ------- Run | Yrd Mat Min Mat Peak Influence 339 | 30 339 12 339 Initial 19 | . 19 2 4 Average 117 | 11 202 8 155 Maximum Alert Level 1 | . 1 . 1 Low Security (%) 69 | 100 43 100 63 Level 1 30 | . 56 . 36 Level 2 . | . . . . Level 3 . | . . . . Level 4 . | . . . . Level 5 . | . . . . High Security . | . . . . Max Security . | . . . . Squads Dispatched 7 | . 4 . 3 Investigation 3 | . 3 . . Extermination . | . . . . Reinforcement 4 | . 1 . 3 Assault . | . . . . Garrison . | . . . . Intercept . | . . . . Searches Triggered . | . . . . Construction Impeded . | . . . . Haulers Reinforced . | . . . . Active Scanning Responses . | . . . . Cargo Convoy Interrupts . | . . . . Stealth | -11 -10 -10 -9 --------- Run | Yrd Mat Min Mat Distress Signals 4 | . 2 . 2 Communications Jammed . | . . . . Distress Signals . | . . . . Times Spotted 42 | . 15 . 27 Peak Tracking Total 10 | . 7 . 10 Tactical Retreats 5 | . 2 . 3 Traps | -11 -10 -10 -9 ------- Run | Yrd Mat Min Mat Traps Triggered 2 | . 2 . . Indirectly . | . . . . Trap Hack Attempts . | . . . . Triggered . | . . . . Disarmed . | . . . . Reprogrammed . | . . . . Reused . | . . . . Traps Extracted . | . . . . Installed . | . . . . Triggered . | . . . . Machines | -11 -10 -10 -9 ---------- Run | Yrd Mat Min Mat Machines Disabled 5 | . 5 . . Max in Single Turn 3 | . 3 . . Machines Repaired . | . . . . Machines Dismantled . | . . . . Machines Sabotaged . | . . . . Overloaded Fab Kills . | . . . . Hacking | -11 -10 -10 -9 --------- Run | Yrd Mat Min Mat Machines Accessed 7 | . 6 . 1 Terminals 7 | . 6 . 1 Fabricators . | . . . . Repair Stations . | . . . . Recycling Units . | . . . . Scanalyzers . | . . . . Garrison Access . | . . . . Total Hacks 24 | . 21 . 3 Successful 10 | . 9 . 1 Failed 14 | . 12 . 2 Catastrophic 1 | . . . 1 Database Lockouts . | . . . . Manual . | . . . . Terminals 24 | . 21 . 3 Fabricators . | . . . . Repair Stations . | . . . . Recycling Units . | . . . . Scanalyzers . | . . . . Garrison Access . | . . . . Terminal Hacks 10 | . 9 . 1 Prototype ID Bank 1 | . 1 . . Terminal Index 1 | . 1 . . Alert Level 1 | . 1 . . Unreport Threat 2 | . 1 . 1 Locate Traps 1 | . 1 . . Transport Status 1 | . 1 . . Recall Investigation 1 | . 1 . . Recall Reinforcements 1 | . 1 . . Registered Components 1 | . 1 . . Fabricator Hacks . | . . . . Repair Station Hacks . | . . . . Recycling Unit Hacks . | . . . . Scanalyzer . | . . . . Garrison Access Hacks . | . . . . Unauthorized Hacks . | . . . . Terminals . | . . . . Fabricators . | . . . . Repair Stations . | . . . . Recycling Units . | . . . . Scanalyzers . | . . . . Garrison Access . | . . . . Data Cores Recovered . | . . . . Used . | . . . . Hacking Detections 6 | . 5 . 1 Full Trace Events 6 | . 5 . 1 Feedback Events . | . . . . Feedback Blocked . | . . . . Robot Schematics Acquired . | . . . . Robots Built . | . . . . Authchips . | . . . . Time . | . . . . Total Robot Build Rating . | . . . . Part Schematics Acquired . | . . . . Parts Built . | . . . . Authchips . | . . . . Time . | . . . . Total Part Build Rating . | . . . . Parts Repaired . | . . . . Time . | . . . . Parts Recycled . | . . . . Recycled Matter . | . . . . Retrieved Matter . | . . . . Retrieved Components . | . . . . Parts Scanalyzed . | . . . . Part Schematics Acquired . | . . . . Parts Damaged . | . . . . Bothacking | -11 -10 -10 -9 ------------ Run | Yrd Mat Min Mat Used RIF Installer . | . . . . Robots Hacked 2 | . . . 2 Non-combat 2 | . . . 2 Combat . | . . . . Robot Hacks Applied 3 | . . . 3 parse_system 1 | . . . 1 no_distress 1 | . . . 1 find_station 1 | . . . 1 Relay Couplers Released . | . . . . Fabnet Peak Effective % . | . . . . Robots Rewired . | . . . . Allies Hacked . | . . . . Hacks Repelled . | . . . . Allies | -11 -10 -10 -9 -------- Run | Yrd Mat Min Mat Total Allies 2 | . . 2 . Largest Group 2 | . . 2 2 Highest-Rated Group 42 | . . 42 42 Highest-Rated Ally 31 | . . 31 31 Total Orders . | . . . . Ally Attacks 2 | . . . 2 Total Damage 42 | . . . 42 Kills 1 | . . . 1 Allies Corrupted . | . . . . Allies Melted . | . . . . Intel | -11 -10 -10 -9 ------- Run | Yrd Mat Min Mat Robot Analysis Total . | . . . . Derelict Logs Recovered 2 | . . 2 . Drone Launches . | . . . . Drone Recoveries . | . . . . Exploration | -11 -10 -10 -9 ------------- Run | Yrd Mat Min Mat Turns Passed 1218 | 132 416 312 358 Spaces Moved 1667 | 80 557 521 509 Core 17 | 9 2 . 6 Treads . | . . . . Legs . | . . . . Wheels 143 | 71 72 . . Hover . | . . . . Flight 1507 | . 483 521 503 Fastest Speed 34 | 50 37 37 34 Average Speed 40 | 85 42 37 35 Slowest Speed 150 | 90 150 37 100 Overloaded Moves . | . . . . Propulsion Burnouts . | . . . . Robots Hopped 1 | . . 1 . Cave-ins Triggered 1 | . 1 . . Exploration Rate (%) 46 | 3 66 89 26 Regions Visited 3 Branch Regions 1 Pre-discovered Areas 2 | . . 2 . Known Exits Taken . | . . . . Unknown Exits Taken 3 | 1 1 1 . Scrap Searched 2 | . . 2 . Spaces Dug 30 | . 14 11 5 Terrain Destroyed 54 | . 38 11 5 Melee 14 | . . 10 4 Projectile 16 | . 14 1 1 AOE 24 | . 24 . . Terrain Rammed . | . . . . Walls Destroyed . | . . . . Machines Disabled . | . . . . Actions | -11 -10 -10 -9 --------- Run | Yrd Mat Min Mat Total 2013 | 111 667 622 613 Wait 155 | . 50 85 20 Move 1662 | 79 556 518 509 Hop 1 | . . 1 . Pick Up 32 | 8 13 2 9 Fast Attach 5 | . . . 5 Attach 32 | 7 12 2 11 Detach 8 | . 3 1 4 Swap . | . . . . Drop 12 | 1 5 2 4 Fire 46 | 16 28 1 1 Melee 60 | . . 10 50 Ram . | . . . . Kick . | . . . . Crush . | . . . . Escape Stasis . | . . . . Rewire . | . . . . Trap . | . . . . Miscellaneous . | . . . . Route ------- -11/Scrapyard -10/Materials (discovered 2 exits: *Mat / [*Min]) -10/Mines (discovered 2 exits: *Mat x2) -9/Materials History --------- Turn | Location | Event 20 | -11/Scrapyard | Discovered new exit (range 15) 133 | -11/Scrapyard | Entered Materials 254 | -10/Materials | Discovered new exit (range 8) 291 | -10/Materials | Discovered new exit (range 3) 303 | -10/Materials | Build established: Mutant 411 | -10/Materials | Crushed by falling debris 411 | -10/Materials | System corruption reached 10% 442 | -10/Materials | Lost 4 parts (1p1n2w) 549 | -10/Materials | Entered Mines 589 | -10/Mines | Learned location of Zion (-6) 590 | -10/Mines | Learned location of Storage (-8) 614 | -10/Mines | A weapon hastily lodged in a ceiling crevice suddenly fell to the ground 731 | -10/Mines | Learned Materials emergency access door positions 735 | -10/Mines | Discovered new exit (range 11) 799 | -10/Mines | Discovered new exit (range 7) 861 | -10/Mines | Entered Materials 861 | -9/Materials | Accompanied by 2 allies 861 | -9/Materials | Evolved 2 slots: Propulsion x1, Utility x1 866 | -9/Materials | Led the pair of lost Derelicts to an unsafe place 1041 | -9/Materials | Core integrity fell below 50% 1067 | -9/Materials | Lost 5 parts (1p2n2u) 1185 | -9/Materials | Core integrity fell below 20% 1219 | -9/Materials | Destroyed by Y-45 Defender with Beam Rifle Last Messages --------------- 01136_ Destroyed Wheel. 01136_ K-01 Serf destroyed. 01143_ Flight Unit destroyed. 01144_ Acquired 25 matter. 01144_ G-34 Mercenary destroyed. 01159_ R-06 Scavenger collects Wheel. 01177_ Connecting with Terminal... 01177_ Current location identified: Materials >>Alert(Purge) Purged threat record, alert level lowered. 01182_ Y-45 Defender destroyed. 01184_ Acquired 20 matter. 01187_ Mining Laser destroyed. 01209_ Flight Unit destroyed. 01210_ Lgt. Nuclear Core destroyed. 01211_ Flight Unit destroyed. 01212_ S-10 Pest Lgt. Ion Engine severed. 01213_ S-10 Pest destroyed. 01217_ Flight Unit destroyed. 01219_ Critical hit (Burn: +37). Map ----- +----------------------------------------------------+ | ????????????????????????????????? | | ????????????????????????????????? | | ????????????????????????????????? | | ????????????????????????????????? | | ????????????????????????????????? | | ???????#######??????????????????? | | ##?????# "#??????????????????? | | # #????# ##??????????????????? | | # ???# [ #???????????????????? | | #" ?### #???????????????????? | | #T # / #???????????????????? | | #" # # #???????????????????? | | # + # #???????????????????? | | # # # #?????? ???????????? | | # !![# # #????? #???????????? | | # ![?# ######????? #???????????? | | # ![?# #?????????? #???????????? | | ###??#!#????????? #???????????? | | ?????#*#????????? #???????????? | | ?????#%######???? #???????????? | | ??####!=% #???? #?????? ? ? | | ###;##+#### #???? #?????? ? ? | | # [*= ## #???? ### ?? ? ? | | # ## #???# # ? T | | # ## ##### #??# " ? | | # [*@# #??????# ? | | # s Y #??????# ? | | # ss# #??????# ? | | # ##+##### #??????# ## | | # # ! # #??????# ## | | # #[ # #?????## ## | | ##########%=""" + ####### # | | ?????????#= """ # # | | ?????????# """ # / | | ?????????# # # | | ?????????#/###### ####### # | | ?????????# #????# # ## ## | | ?????????# #????# # ## ## | | ?????##### ###### / ## ## | | ?????#! # #" #? | | ?????#! # ## ## | | ?????#** # ## ## | | ?????#** ### ##### ## ## ## | | ?????#!! #?#!#???# ## # # | | ?????#!! #?#%#???# ## # !# | | ???#########+##### ## # %/ | | ???# = !# ## " # | | ???# T% """"" # ## # # | | ??## """"""""" # ############## | | ??# [""" """ #%#????????????# | +----------------------------------------------------+ Best States ------------- Heat Dissipation 28 Energy Generation 14 Energy Capacity 250 Matter Stores 300 Matter Capacity 400 Sight Range 16 Robot Scan Range 14 Terrain Scan Range 16 Terrain Scan Density 10 Propulsion Shielding 33 Evasion (%) 63 Offensive Hacking 20 Item Schematics ----------------- None Robot Schematics ------------------ None Fabricated ------------ Nothing Alien Tech Used ----------------- None Achievements -------------- GoHome() Party Time Unlikely Earthworm Challenges ------------ None Game ------ Seed PoweredBiometalRedistributor Manual? 0 Play Time 00:29:46 Cumulative 7.3 hours Start 2024.04.06 @ 21:18:57 End 2024.04.06 @ 21:58:31 Sessions 1 Manual Loads 0 Difficulty Rogue Special Mode None Game No. 10 Rogue 7 Adventurer 3 Explorer 0 Win Type - Total 0 Types 0/0/0/0/0/0/0/0/0 Lore% 3 Gallery% 21 Achievement% 16 Wizard Run 0 Options --------- Layout 1 ASCII 0 Keyboard 0 Movement Mouse Keybinds 0 Fullscreen 1 Font 32/SmallcapsGlow Map View 50x35 Zoom Use 0% Tactical HUD 1 Map Filters NONE Filters NONE Steam 1 RUN: da6ff4f9-e6e0-48a6-9a31-f2d0160b819c